fUSD/lending_fUSD_20260122
["ID","MTS","AMOUNT","RATE_DAILY","PERIOD"]
[403068948,1769123438577,-331.5474637,0.00017185,2]
[403068949,1769123438587,-635.33,0.00017186,2]
[403068950,1769123438596,-166.66,0.0001719,2]
[403068951,1769123438610,-2500.0,0.000172,2]
[403068952,1769123438619,-13100.0,0.000172,6]
[403068953,1769123438629,-4046.59111641,0.00017205,2]
[403068954,1769123438638,-1680.0,0.00017218,2]
[403068955,1769123438647,-250.0,0.00017219,2]
[403068956,1769123438657,-5000.0,0.00017219,2]
[403068957,1769123438667,-200.0,0.00017219,2]
[403068958,1769123438680,-202.11619681,0.00017219,2]
[403068959,1769123438689,-195.0,0.00017219,2]
[403068960,1769123438699,-300.0,0.00017219,2]
[403068961,1769123438708,-600.0,0.00017219,2]
[403068962,1769123438718,-2500.0,0.00017219,2]
[403068963,1769123438727,-300.0,0.00017219,2]
[403068964,1769123438736,-193.0,0.00017219,2]
[403068965,1769123438746,-250.0,0.0001726,4]
[403068966,1769123438755,-4046.59111641,0.00017292,2]
[403068967,1769123438765,-26300.0,0.000173,6]
[403068968,1769123438775,-253.97,0.00017312,2]
[403068969,1769123438784,-500.0,0.00017355,2]
[403068970,1769123438794,-506.16656929,0.00017355,2]
[403068971,1769123438803,-500.0,0.00017355,2]
[403068972,1769123438813,-500.0,0.00017355,2]
[403068973,1769123438822,-800.91,0.00017355,2]
[403068974,1769123438831,-500.0,0.00017355,2]
[403068975,1769123438840,-500.0,0.00017355,2]
[403068976,1769123438849,-500.0,0.00017355,2]
[403068977,1769123438859,-500.0,0.00017355,2]
[403068978,1769123438868,-447.92866097,0.00017355,2]
[403068979,1769123438877,-204.66407085,0.00017355,2]
[403068980,1769123438887,-4046.59111641,0.00017379,2]
[403068981,1769123438896,-39500.0,0.000174,6]
[403068982,1769123438906,-309.20674258,0.00017426,2]
[403068983,1769123438915,-435.31,0.00017437,2]
[403068984,1769123438925,-4046.59111641,0.00017466,2]
[403068985,1769123438934,-10000.0,0.00017489,2]
[403068986,1769123438944,-52700.0,0.000175,6]
[403068987,1769123438954,-166.66,0.00017523,2]
[403068988,1769123438964,-1000.0,0.00017536,2]
[403068989,1769123438973,-4046.59111641,0.00017552,2]
[403068990,1769123438983,-193.45674502,0.00017579,2]
[403068991,1769123438992,-500.0,0.00017599,2]
[403068992,1769123439002,-500.0,0.00017599,2]
[403068993,1769123439011,-500.0,0.00017599,2]
[403068994,1769123439021,-800.91,0.00017599,2]
[403068995,1769123439030,-500.0,0.00017599,2]
[403068996,1769123439040,-65900.0,0.000176,6]
[403068997,1769123439050,-8912.97263101,0.00017621,2]
[403068998,1769123439059,-4046.59111641,0.00017639,2]
[403068999,1769123439070,-365.71368167,0.00017644,2]
[403069000,1769123439080,-645.16228389,0.00017644,2]
[403069001,1769123439091,-965.12419207,0.00017644,2]
[403069002,1769123439100,-1305.8397,0.00017644,2]
[403069003,1769123439110,-215.05133739,0.00017673,2]
[403069004,1769123439120,-500.0,0.00017673,2]
[403069005,1769123439130,-500.0,0.00017673,2]
[403069006,1769123439140,-500.0,0.00017673,2]
[403069007,1769123439149,-490.42703734,0.00017673,2]
[403069008,1769123439159,-585.77072382,0.00017673,2]
[403069009,1769123439170,-500.0,0.00017673,2]
[403069010,1769123439180,-500.0,0.00017673,2]
[403069011,1769123439189,-500.0,0.00017673,2]
[403069012,1769123439203,-500.0,0.00017673,2]
[403069013,1769123439213,-1000.0,0.00017688,2]
[403069014,1769123439223,-1414.932,0.00017691,2]
[403069015,1769123439234,-171.51013392,0.000177,2]
[403069016,1769123439243,-188.27599715,0.000177,2]
[403069017,1769123439253,-13100.0,0.000177,6]
[403069018,1769123439264,-2677.27809675,0.000177,2]
[403069019,1769123439274,-1562.2548401,0.000177,2]
[403069020,1769123439284,-1000.0,0.00017701,2]
[403069021,1769123439294,-635.82251147,0.00017703,2]
[403069022,1769123439304,-1000.0,0.00017711,2]
[403069023,1769123439314,-150.0,0.00017716,2]
[403069024,1769123439324,-1000.0,0.00017726,2]
[403069025,1769123439333,-4046.59111641,0.00017726,2]
[403069026,1769123439343,-1000.0,0.00017728,2]
[403069027,1769123439352,-150.0,0.00017733,2]
[403069028,1769123439361,-221.23640684,0.0001774,2]
[403069029,1769123439371,-150.0,0.00017743,2]
[403069030,1769123439380,-150.0,0.00017755,2]
[403069031,1769123439390,-1000.0,0.00017768,2]
[403069032,1769123439400,-2414.0,0.0001777,2]
[403069033,1769123439410,-1000.0,0.00017771,2]
[403069034,1769123439420,-435.31,0.00017783,2]
[403069035,1769123439430,-283.40438168,0.0001779,2]
[403069036,1769123439440,-1000.0,0.0001779,2]
[403069037,1769123439450,-150.0,0.00017791,2]
[403069038,1769123439460,-264.11485995,0.00017799,2]
[403069039,1769123439469,-500.0,0.00017799,2]
[403069040,1769123439479,-500.0,0.00017799,2]
[403069041,1769123439488,-500.0,0.00017799,2]
[403069042,1769123439498,-800.91,0.00017799,2]
[403069043,1769123439508,-800.91,0.00017799,2]
[403069044,1769123439518,-800.91,0.00017799,2]
[403069045,1769123439527,-800.91,0.00017799,2]
[403069046,1769123439537,-500.0,0.00017799,2]
[403069047,1769123439547,-177.5,0.00017799,2]
[403069048,1769123439557,-1000000.0,0.000178,2]
[403069049,1769123439567,-150.60266651,0.000178,2]
[403069050,1769123439577,-250.0,0.000178,2]
[403069051,1769123439586,-250.0,0.000178,2]
[403069052,1769123439596,-250.0,0.000178,2]
[403069053,1769123439607,-250.0,0.000178,2]
[403069054,1769123439617,-250.0,0.000178,2]
[403069055,1769123439628,-250.0,0.000178,2]
[403069056,1769123439638,-250.0,0.000178,2]
[403069057,1769123439649,-250.0,0.000178,2]
[403069058,1769123439659,-326.223354,0.000178,2]
[403069059,1769123439674,-1562.25484009,0.000178,2]
[403069060,1769123439685,-13100.0,0.000178,6]
[403069061,1769123439695,-150.0,0.00017804,2]
[403069062,1769123439706,-150.0,0.00017808,2]
[403069063,1769123439719,-4046.59111641,0.00017813,2]
[403069064,1769123439730,-1000.0,0.00017814,2]
[403069065,1769123439740,-150.0,0.00017815,2]
[403069066,1769123439751,-229.27574,0.0001782,2]
[403069067,1769123439760,-229.27575,0.0001782,2]
[403069068,1769123439770,-800.91,0.00017821,2]
[403069069,1769123439780,-150.0,0.00017826,2]
[403069070,1769123439790,-150.0,0.00017828,2]
[403069071,1769123439799,-150.0,0.00017846,2]
[403069072,1769123439809,-1000.0,0.0001785,2]
[403069073,1769123439819,-1000.0,0.00017851,2]
[403069074,1769123439828,-150.0,0.00017863,2]
[403069075,1769123439838,-30935.0,0.00017863,2]
[403069076,1769123439848,-1000.0,0.00017871,2]
[403069077,1769123439858,-25000.0,0.00017874,3]
[403069078,1769123439868,-1000.0,0.00017882,2]
[403069079,1769123439878,-25000.0,0.00017882,3]
[403069080,1769123439888,-4549.20722655,0.00017888,2]
[403069081,1769123439898,-1000.0,0.00017891,2]
[403069082,1769123439908,-25000.0,0.00017891,3]
[403069083,1769123439918,-150.0,0.00017893,2]
[403069084,1769123439927,-25000.0,0.000179,3]
[403069085,1769123439937,-171.51013392,0.000179,2]
[403069086,1769123439946,-25000.0,0.000179,3]
[403069087,1769123439956,-25000.0,0.000179,3]
[403069088,1769123439965,-13100.0,0.000179,6]
[403069089,1769123439974,-190.22827702,0.000179,3]
[403069090,1769123439984,-832.46973648,0.000179,2]
[403069091,1769123439994,-1562.25484009,0.000179,2]
[403069092,1769123440003,-1521.8136475,0.000179,2]
[403069093,1769123440012,-4046.59111641,0.000179,2]
[403069096,1769123440022,-5165.28482045,0.000179,2]
[403069098,1769123440031,-150.0,0.00017909,2]
[403069099,1769123440040,-1000.0,0.00017912,2]
[403069101,1769123440050,-1000.0,0.00017913,2]
[403069103,1769123440060,-150.0,0.00017918,2]
[403069104,1769123440069,-367.044,0.00017924,2]
[403069105,1769123440079,-150.0,0.00017948,2]
[403069106,1769123440088,-150.0,0.00017959,2]
[403069107,1769123440097,-150.0,0.00017972,2]
[403069108,1769123440106,-150.0,0.00017972,2]
[403069110,1769123440116,-150.0,0.00017973,2]
[403069111,1769123440126,-150.0,0.00017973,2]
[403069112,1769123440136,-800.91,0.00017998,2]
[403069113,1769123440145,-3743.8448572,0.00017999,2]
[403069114,1769123440155,-155.0,0.00017999,2]
[403069115,1769123440164,-59607.7477561,0.00017999,2]
[403069116,1769123440173,-3185.6345365,0.00017999,2]
[403069117,1769123440183,-1926.9285336,0.00017999,2]
[403069118,1769123440192,-13772.4141614,0.00017999,2]
[403069119,1769123440202,-800.91,0.00017999,2]
[403069120,1769123440212,-800.91,0.00017999,2]
[403069121,1769123440222,-800.91,0.00017999,2]
[403069122,1769123440232,-800.91,0.00017999,2]
[403069123,1769123440242,-800.91,0.00017999,2]
[403069124,1769123440252,-800.91,0.00017999,2]
[403069125,1769123440262,-800.91,0.00017999,2]
[403069126,1769123440272,-800.91,0.00017999,2]
[403069127,1769123440282,-800.91,0.00017999,2]
[403069128,1769123440291,-800.91,0.00017999,2]
[403069129,1769123440301,-800.91,0.00017999,2]
[403069130,1769123440310,-800.91,0.00017999,2]
[403069131,1769123440320,-800.91,0.00017999,2]
[403069132,1769123440331,-800.91,0.00017999,2]
[403069133,1769123440341,-800.91,0.00017999,2]
[403069134,1769123440350,-801.06993185,0.00017999,2]
[403069135,1769123440358,-300.0,0.00017999,2]
[403069136,1769123440367,-300.0,0.00017999,2]
[403069137,1769123440376,-865.3940915,0.00017999,2]
[403069138,1769123440386,-200.0,0.00018,3]
[403069139,1769123440396,-3250748.73250719,0.00018,2]
[403069153,1769123443684,-1106.94108937,0.00018,2]
[403069216,1769123446458,-17551.07922376,0.00015893,2]
[403069218,1769123446470,-822.78396786,0.00015893,2]
[403069224,1769123446592,-1051.62888184,0.00015893,2]
[403069225,1769123446964,-547.86314549,0.00015893,2]
[403069226,1769123446993,-8507.24236572,0.00015893,2]
[403069252,1769123850028,240.89080885,0.000176,30]
[403069280,1769124632213,-600.0,0.000159,5]
[403069281,1769124632223,-4676.19276686,0.000159,5]
[403069282,1769124632247,-5123.80723314,0.000159,5]
[403069283,1769124632257,-1200.0,0.00015999,2]
[403069284,1769124632267,-300.0,0.00015999,2]
[403069285,1769124632277,-5945.6491162,0.00016,2]
[403069286,1769124632287,-16985.33529902,0.00016,4]
[403069287,1769124632297,-250.0,0.00016029,2]
[403069288,1769124632307,-5000.00474667,0.000162,5]
[403069289,1769124632317,-1133.08,0.00016252,2]
[403069290,1769124632327,-951.3406288,0.00016329,2]
[403069291,1769124632336,-53029.1288473,0.00016362,2]
[403069336,1769124638390,-183.14132019,0.00016361,2]
[403069337,1769124638400,-517.00888192,0.00016361,2]
[403069338,1769124638410,-383.63067209,0.00016361,2]
[403069339,1769124638510,-116.36932791,0.00016361,2]
[403069340,1769124638519,-325.2341548,0.00016361,2]
[403069341,1769124638529,-500.0,0.00016361,2]
[403069342,1769124638539,-500.0,0.00016361,2]
[403069343,1769124638549,-428.515933,0.00016361,2]
[403069344,1769124638558,-156.99474169,0.00016361,2]
[403069345,1769124638568,-523.14239876,0.00016361,2]
[403069346,1769124638578,-946970.8711527,0.00016362,2]
[403069347,1769124638587,-729.0,0.00016429,2]
[403069348,1769124638597,-500.0,0.00016438,2]
[403069349,1769124638606,-169.00474943,0.00016438,2]
[403069350,1769124638616,-500.0,0.00016452,2]
[403069351,1769124638626,-500.0,0.00016452,2]
[403069352,1769124638635,-500.0,0.00016452,2]
[403069353,1769124638644,-200.0,0.00016452,2]
[403069354,1769124638654,-500.0,0.00016452,2]
[403069355,1769124638663,-150.0,0.00016581,2]
[403069356,1769124638673,-200.0,0.00016595,2]
[403069357,1769124638683,-360.2415698,0.000166,2]
[403069358,1769124638692,-57668.7058,0.00016623,2]
[403069359,1769124638702,-33239.6832,0.00016723,2]
[403069360,1769124638712,-731.0,0.00016791,2]
[403069361,1769124638722,-164.45,0.00016862,2]
[403069362,1769124638731,-1300.0,0.000169,6]
[403069363,1769124638741,-19700.0,0.000169,6]
[403069364,1769124638751,-500.0,0.00016911,2]
[403069365,1769124638761,-500.0,0.00016911,2]
[403069367,1769124638770,-150.0,0.00016911,2]
[403069369,1769124638779,-731.0,0.00016919,2]
[403069371,1769124638789,-951.34062879,0.00016931,2]
[403069372,1769124638798,-332.97,0.00016935,2]
[403069374,1769124638808,-9999.99,0.00016935,2]
[403069376,1769124638817,-150.99,0.00016935,2]
[403069378,1769124638826,-1524.15,0.00016935,2]
[403069380,1769124638836,-9999.99,0.00016935,2]
[403069381,1769124638845,-500.0,0.00016942,2]
[403069382,1769124638855,-731.0,0.00016952,2]
[403069383,1769124638864,-500.0,0.00016966,2]
[403069384,1769124638874,-500.0,0.00016966,2]
[403069385,1769124638883,-250.0,0.00017,2]
[403069386,1769124638893,-500.0,0.00017,2]
[403069387,1769124638903,-500.0,0.00017021,2]
[403069388,1769124638914,-500.0,0.00017021,2]
[403069389,1769124638924,-200.0,0.0001704,2]
[403069390,1769124638933,-500.0,0.00017064,2]
[403069391,1769124638943,-1133.08,0.00017064,2]
[403069392,1769124638954,-500.0,0.00017075,2]
[403069393,1769124638964,-500.0,0.00017075,2]
[403069394,1769124638974,-330.57,0.00017099,2]
[403069395,1769124638984,-748.11534687,0.00017099,2]
[403069396,1769124638994,-500.0,0.00017099,2]
[403069397,1769124639004,-500.0,0.00017099,2]
[403069398,1769124639017,-500.0,0.00017099,2]
[403069399,1769124639027,-500.0,0.00017099,2]
[403069400,1769124639037,-500.0,0.00017099,2]
[403069401,1769124639047,-500.0,0.00017099,2]
[403069402,1769124639056,-500.0,0.00017099,2]
[403069403,1769124639066,-500.0,0.00017099,2]
[403069404,1769124639075,-500.0,0.00017099,2]
[403069405,1769124639088,-500.0,0.00017099,2]
[403069406,1769124639103,-500.0,0.00017099,2]
[403069407,1769124639118,-250.0,0.00017099,2]
[403069408,1769124639133,-250.0,0.00017099,2]
[403069409,1769124639143,-500.0,0.00017099,2]
[403069410,1769124639153,-250.0,0.00017099,2]
[403069411,1769124639163,-500.0,0.00017099,2]
[403069412,1769124639173,-250.0,0.00017099,2]
[403069413,1769124639183,-500.0,0.00017099,2]
[403069414,1769124639193,-250.0,0.00017099,2]
[403069415,1769124639203,-500.0,0.00017099,2]
[403069416,1769124639214,-289.88191886,0.00017099,2]
[403069417,1769124639225,-151.0,0.00017099,2]
[403069418,1769124639235,-500.0,0.00017099,2]
[403069419,1769124639246,-151.0,0.00017099,2]
[403069420,1769124639256,-151.0,0.00017099,2]
[403069421,1769124639266,-151.0,0.00017099,2]
[403069422,1769124639277,-151.0,0.00017099,2]
[403069423,1769124639287,-151.0,0.00017099,2]
[403069424,1769124639297,-151.0,0.00017099,2]
[403069425,1769124639308,-151.0,0.00017099,2]
[403069426,1769124639325,-151.0,0.00017099,2]
[403069427,1769124639341,-151.0,0.00017099,2]
[403069428,1769124639352,-151.0,0.00017099,2]
[403069429,1769124639366,-2600.0,0.000171,6]
[403069430,1769124639378,-450.0,0.0001713,2]
[403069431,1769124639389,-150.0,0.0001713,2]
[403069432,1769124639404,-5300.0,0.000172,6]
[403069433,1769124639425,-4524.0,0.00017299,2]
[403069434,1769124639447,-7900.0,0.000173,6]
[403069435,1769124639463,-1900.0,0.000173,6]
[403069436,1769124639477,-29600.0,0.000173,6]
[403069437,1769124639489,-500.0,0.00017338,2]
[403069438,1769124639503,-380.57242531,0.00017355,2]
[403069439,1769124639514,-500.0,0.00017355,2]
[403069440,1769124639524,-330.57,0.00017373,2]
[403069441,1769124639536,-287.0,0.00017374,2]
[403069442,1769124639551,-157.44687871,0.0001739,2]
[403069443,1769124639562,-10600.0,0.000174,6]
[403069444,1769124639575,-2600.0,0.000174,6]
[403069445,1769124639588,-39500.0,0.000174,6]
[403069446,1769124639598,-500.0,0.00017453,2]
[403069447,1769124639610,-500.0,0.00017453,2]
[403069448,1769124639620,-500.0,0.00017453,2]
[403069449,1769124639629,-411.52938718,0.00017453,2]
[403069450,1769124639639,-500.0,0.00017453,2]
[403069451,1769124639649,-600.68,0.00017453,2]
[403069452,1769124639659,-500.0,0.00017453,2]
[403069453,1769124639669,-1050.72,0.00017453,2]
[403069454,1769124639680,-500.0,0.00017453,2]
[403069455,1769124639690,-500.0,0.00017453,2]
[403069456,1769124639699,-500.0,0.00017453,2]
[403069457,1769124639709,-500.0,0.00017453,2]
[403069458,1769124639719,-483.78166184,0.00017453,2]
[403069459,1769124639728,-500.0,0.00017453,2]
[403069460,1769124639738,-500.0,0.00017453,2]
[403069461,1769124639748,-2500.0,0.0001749,2]
[403069462,1769124639758,-300.0,0.0001749,2]
[403069463,1769124639768,-195.0,0.0001749,2]
[403069464,1769124639779,-5000.0,0.0001749,2]
[403069465,1769124639788,-200.0,0.0001749,2]
[403069466,1769124639798,-202.11619681,0.0001749,2]
[403069467,1769124639808,-193.0,0.0001749,2]
[403069468,1769124639819,-300.0,0.0001749,2]
[403069469,1769124639829,-600.0,0.0001749,2]
[403069470,1769124639840,-300.0,0.00017492,2]
[403069471,1769124639850,-923.71300875,0.00017494,2]
[403069472,1769124639860,-3302.94097839,0.000175,3]
[403069473,1769124639871,-1604.04104564,0.000175,2]
[403069474,1769124639881,-13200.0,0.000175,6]
[403069475,1769124639891,-3200.0,0.000175,6]
[403069476,1769124639901,-49300.0,0.000175,6]
[403069477,1769124639911,-29608.54966297,0.00017511,2]
[403069478,1769124639924,-951.34062879,0.00017533,2]
[403069479,1769124639934,-500.0,0.0001754,2]
[403069480,1769124639944,-510.11481069,0.00017555,2]
[403069481,1769124639954,-29608.54966297,0.00017567,2]
[403069482,1769124639963,-1680.0,0.0001758,2]
[403069483,1769124639974,-500.0,0.00017599,2]
[403069484,1769124639985,-809.3182233,0.000176,2]
[403069485,1769124639995,-1000.0,0.000176,2]
[403069486,1769124640004,-250.0,0.000176,2]
[403069487,1769124640018,-2600.0,0.000176,6]
[403069488,1769124640028,-600.0,0.000176,6]
[403069489,1769124640039,-9800.0,0.000176,6]
[403069490,1769124640051,-300.0,0.00017604,2]
[403069491,1769124640061,-195.0,0.00017604,2]
[403069492,1769124640072,-250.0,0.00017604,2]
[403069493,1769124640083,-500.0,0.00017616,2]
[403069494,1769124640093,-29608.54966297,0.00017622,2]
[403069495,1769124640104,-809.31822328,0.00017633,2]
[403069496,1769124640116,-1857.57020595,0.0001764,2]
[403069497,1769124640126,-330.57,0.00017647,2]
[403069498,1769124640137,-1569.0,0.00017648,2]
[403069499,1769124640147,-1000.0,0.00017649,2]
[403069500,1769124640158,-1569.0,0.0001765,2]
[403069501,1769124640168,-635.82251147,0.00017651,2]
[403069502,1769124640178,-1000.0,0.00017661,2]
[403069503,1769124640188,-1000.0,0.00017663,2]
[403069504,1769124640198,-1000.0,0.00017664,2]
[403069505,1769124640208,-809.31822328,0.00017667,2]
[403069506,1769124640218,-500.0,0.00017671,2]
[403069507,1769124640228,-500.0,0.00017673,2]
[403069508,1769124640239,-500.0,0.00017673,2]
[403069509,1769124640249,-500.0,0.00017673,2]
[403069510,1769124640260,-500.0,0.00017673,2]
[403069511,1769124640270,-514.13913965,0.00017673,2]
[403069512,1769124640280,-546.39725778,0.00017673,2]
[403069513,1769124640291,-500.0,0.00017673,2]
[403069514,1769124640301,-500.0,0.00017673,2]
[403069515,1769124640311,-29608.54966297,0.00017678,2]
[403069516,1769124640322,-200.0,0.00017682,2]
[403069517,1769124640333,-1000.0,0.00017686,2]
[403069518,1769124640344,-1131.946,0.00017699,2]
[403069519,1769124640355,-1000.0,0.000177,2]
[403069520,1769124640365,-2500.0,0.000177,2]
[403069521,1769124640375,-2600.0,0.000177,6]
[403069522,1769124640385,-809.31822328,0.000177,2]
[403069523,1769124640396,-1000.0,0.000177,2]
[403069524,1769124640407,-1000.0,0.000177,2]
[403069525,1769124640417,-600.0,0.000177,6]
[403069526,1769124640428,-9800.0,0.000177,6]
[403069527,1769124640438,-1569.0,0.00017706,2]
[403069528,1769124640448,-500.0,0.00017726,2]
[403069529,1769124640458,-1569.0,0.00017726,2]
[403069530,1769124640469,-1000.0,0.00017732,2]
[403069531,1769124640478,-29608.54966297,0.00017733,2]
[403069532,1769124640489,-809.31822328,0.00017733,2]
[403069534,1769124640499,-150.0,0.00017739,2]
[403069535,1769124640644,-150.0,0.00017742,2]
[403069536,1769124640654,-150.0,0.0001775,2]
[403069537,1769124640664,-150.0,0.00017751,2]
[403069538,1769124640674,-150.0,0.00017756,2]
[403069539,1769124640684,-1000.0,0.00017757,2]
[403069540,1769124640694,-1000.0,0.00017763,2]
[403069541,1769124640703,-809.31822328,0.00017767,2]
[403069542,1769124640713,-1569.0,0.00017767,2]
[403069543,1769124640722,-1569.0,0.00017773,2]
[403069544,1769124640732,-500.0,0.0001778,2]
[403069545,1769124640742,-29608.54966297,0.00017789,2]
[403069546,1769124640752,-150.0,0.00017792,2]
[403069547,1769124640766,-500.0,0.00017799,2]
[403069548,1769124640776,-500.0,0.00017799,2]
[403069549,1769124640787,-500.0,0.00017799,2]
[403069550,1769124640797,-171.51013392,0.000178,2]
[403069551,1769124640808,-150.60266651,0.000178,2]
[403069552,1769124640819,-446.46533198,0.000178,2]
[403069553,1769124640830,-809.31822328,0.000178,2]
[403069554,1769124640841,-2600.0,0.000178,6]
[403069555,1769124640851,-600.0,0.000178,6]
[403069556,1769124640861,-9800.0,0.000178,6]
[403069557,1769124640871,-150.0,0.00017802,2]
[403069558,1769124640881,-150.0,0.00017808,2]
[403069559,1769124640891,-500.0,0.00017808,2]
[403069560,1769124640901,-1000.0,0.00017808,2]
[403069561,1769124640911,-853.31820226,0.00017811,2]
[403069562,1769124640922,-2251.92023657,0.00017811,2]
[403069563,1769124640932,-3972.65422594,0.00017811,2]
[403069564,1769124640942,-5942.85313317,0.00017811,2]
[403069565,1769124640952,-8040.8889,0.00017811,2]
[403069566,1769124640963,-150.0,0.00017812,2]
[403069567,1769124640974,-1000.0,0.00017813,2]
[403069568,1769124640984,-150.0,0.00017817,2]
[403069569,1769124640994,-152.8505,0.0001782,2]
[403069570,1769124641005,-152.8505,0.0001782,2]
[403069571,1769124641017,-5767.21416178,0.0001783,2]
[403069572,1769124641028,-809.31822328,0.00017833,2]
[403069573,1769124641037,-500.0,0.00017835,2]
[403069574,1769124641047,-150.0,0.00017842,2]
[403069575,1769124641059,-29608.54966297,0.00017844,2]
[403069576,1769124641069,-221.23640684,0.00017849,2]
[403069577,1769124641079,-1000.0,0.00017855,2]
[403069578,1769124641091,-1244.918,0.00017859,2]
[403069579,1769124641101,-150.0,0.0001786,2]
[403069580,1769124641111,-1000.32393849,0.0001786,2]
[403069581,1769124641121,-1000.0,0.00017862,2]
[403069582,1769124641131,-150.0,0.00017863,2]
[403069583,1769124641141,-500.0,0.00017863,2]
[403069584,1769124641152,-809.31822328,0.00017867,2]
[403069586,1769124641163,-1000.0,0.00017868,2]
[403069587,1769124641173,-1000.0,0.00017869,2]
[403069588,1769124641184,-1000.0,0.00017875,2]
[403069589,1769124641194,-1133.08,0.00017877,2]
[403069590,1769124641204,-1041.50322674,0.00017882,2]
[403069591,1769124641215,-1000.0,0.00017885,2]
[403069593,1769124641225,-500.0,0.0001789,2]
[403069595,1769124641235,-1041.50322672,0.00017891,2]
[403069597,1769124641245,-1569.0,0.00017891,2]
[403069598,1769124641255,-150.0,0.00017892,2]
[403069599,1769124641266,-367.044,0.00017893,2]
[403069600,1769124641276,-604.54147957,0.00017899,2]
[403069602,1769124641286,-500.0,0.00017899,2]
[403069603,1769124641296,-500.0,0.00017899,2]
[403069604,1769124641307,-500.0,0.00017899,2]
[403069605,1769124641317,-508.16450939,0.00017899,2]
[403069606,1769124641327,-500.0,0.00017899,2]
[403069608,1769124641338,-500.0,0.00017899,2]
[403069610,1769124641348,-600.68,0.00017899,2]
[403069611,1769124641359,-600.68,0.00017899,2]
[403069612,1769124641369,-600.68,0.00017899,2]
[403069613,1769124641380,-600.68,0.00017899,2]
[403069614,1769124641390,-1050.72,0.00017899,2]
[403069615,1769124641400,-1050.72,0.00017899,2]
[403069616,1769124641411,-1050.72,0.00017899,2]
[403069617,1769124641421,-1050.72,0.00017899,2]
[403069618,1769124641431,-500.0,0.00017899,2]
[403069619,1769124641442,-500.0,0.00017899,2]
[403069620,1769124641452,-500.0,0.00017899,2]
[403069621,1769124641463,-500.0,0.00017899,2]
[403069622,1769124641473,-500.0,0.00017899,2]
[403069623,1769124641483,-500.0,0.00017899,2]
[403069624,1769124641493,-1000.0,0.000179,2]
[403069625,1769124641503,-623.4318,0.000179,2]
[403069626,1769124641514,-10000.0,0.000179,2]
[403069627,1769124641524,-29608.54966297,0.000179,2]
[403069628,1769124641534,-250.0,0.000179,2]
[403069629,1769124641545,-250.0,0.000179,2]
[403069630,1769124641555,-250.0,0.000179,2]
[403069631,1769124641565,-250.0,0.000179,2]
[403069632,1769124641575,-250.0,0.000179,2]
[403069633,1769124641586,-250.0,0.000179,2]
[403069634,1769124641597,-250.0,0.000179,2]
[403069635,1769124641607,-250.0,0.000179,2]
[403069636,1769124641618,-326.223354,0.000179,2]
[403069637,1769124641628,-2600.0,0.000179,6]
[403069638,1769124641639,-809.31822328,0.000179,2]
[403069639,1769124641649,-1041.50322672,0.000179,2]
[403069640,1769124641660,-26682.59430966,0.000179,2]
[403069641,1769124641671,-2497.40920944,0.000179,2]
[403069642,1769124641680,-4565.44094248,0.000179,2]
[403069643,1769124641690,-600.0,0.000179,6]
[403069644,1769124641700,-15495.85446133,0.000179,2]
[403069645,1769124641709,-9800.0,0.000179,6]